bitfinex/quotes_SOLUSD_20250217
["timestamp","ask_amount","ask_price","bid_price","bid_amount"]
[1739758780751,0.03,189.18,189.17,95.63433573]
[1739758781452,0.03,189.18,189.17,96.42688665]
[1739758782058,0.03,189.18,189.17,110.83873518]
[1739758782257,0.03,189.24,189.2,20.0]
[1739758782565,0.03,189.24,189.23,8.78513573]
[1739758783766,0.03,189.24,189.23,14.06963573]
[1739758798164,0.03,189.24,189.23,13.56963573]
[1739758804685,0.03,189.24,189.23,13.63263573]
[1739758805069,0.03,189.24,189.23,5.3475]
[1739758805390,0.03,189.24,189.23,14.13263573]
[1739758814187,0.03,189.28,189.26,20.0]
[1739758814376,0.03,189.28,189.27,8.78513573]
[1739758814981,0.03,189.28,189.27,14.06853573]
[1739758818803,0.03,189.28,189.27,95.56853573]
[1739758819206,0.03,189.28,189.27,96.56853573]
[1739758833617,0.0001,189.28,189.27,109.98038426]
[1739758833920,0.03,189.31,189.3,20.0]
[1739758834137,0.03,189.31,189.3,145.42567865]
[1739758835119,0.03,189.31,189.3,110.28513573]
[1739758836321,0.03,189.31,189.3,115.56773573]
[1739758843406,0.03,189.31,189.3,86.7826]
[1739758845034,0.03,189.31,189.29,5.2828]
[1739758862647,0.03,189.31,189.29,14.06793573]
[1739758863936,0.03,189.31,189.3,8.78513573]
[1739758864940,0.03,189.31,189.3,5.2826]
[1739758866351,0.03,189.31,189.3,14.06773573]
[1739758874531,0.03,189.31,189.3,5.2826]
[1739758876262,0.03,189.31,189.29,5.2828]
[1739758876860,0.03,189.31,189.28,5.3461]
[1739758878045,0.03,189.31,189.28,0.063]
[1739758893167,30.0,189.3,189.28,0.063]
[1739758896757,35.2827,189.3,189.28,0.063]
[1739758912465,30.0,189.3,189.28,0.063]
[1739758913381,18.72414853,189.31,189.28,0.063]
[1739758913785,0.03,189.3,189.28,0.063]
[1739758922697,0.03,189.3,189.28,8.84813573]
[1739758923028,0.03,189.3,189.29,8.78513573]
[1739758924679,0.03,189.3,189.29,14.06793573]
[1739758924874,0.03,189.3,189.29,96.36013879]
[1739758925877,0.03,189.3,189.29,95.56793573]
[1739758927992,0.03,189.3,189.29,101.91643573]
[1739758928184,0.03,189.3,189.29,103.53673573]
[1739758936106,0.03,189.3,189.29,97.18823573]
[1739758936409,0.03,189.3,189.29,95.56793573]
[1739758951923,0.03,189.3,189.29,95.56793573]
[1739758958718,0.03,189.3,189.29,96.36010521]
[1739758958920,0.03,189.3,189.29,95.56793573]
[1739758994251,0.03,189.3,189.29,96.35999379]
[1739758994862,0.03,189.3,189.29,131.50053671]
[1739758995037,0.03,189.3,189.29,144.12032718]
[1739758996962,0.03,189.31,189.3,13.41184853]
[1739758997265,0.03,189.31,189.3,58.12946991]
[1739758998076,0.03,189.31,189.3,63.41206991]
[1739759002866,0.03,189.31,189.3,144.91206991]
[1739759003062,0.03,189.31,189.3,144.12012718]
[1739759006868,0.03,189.31,189.3,145.12012718]
[1739759007168,0.0001,189.31,189.3,145.12012718]
[1739759009849,0.03,189.37,189.36,20.0]
[1739759010053,0.03,189.37,189.36,124.48871726]
[1739759010264,0.03,189.37,189.36,123.69698426]
[1739759011267,0.03,189.37,189.36,128.97788426]
[1739759017673,0.03,189.37,189.36,129.97788426]
[1739759019781,0.03,189.37,189.36,130.04088426]
[1739759021860,0.03,189.37,189.36,129.04088426]
[1739759022059,0.03,189.37,189.36,115.62903573]
[1739759022868,0.0001,189.37,189.36,130.04088426]
[1739759024890,0.0001,189.37,189.36,135.86938268]
[1739759031298,0.0001,189.37,189.36,134.86938268]
[1739759034000,0.0001,189.37,189.36,135.86938268]
[1739759034700,0.0001,189.37,189.36,134.86938268]
[1739759036205,0.0001,189.37,189.36,135.86938268]
[1739759036398,0.0001,189.37,189.36,134.86938268]
[1739759040423,0.0001,189.37,189.36,121.45753415]
[1739759050231,0.0001,189.37,189.36,134.86938268]
[1739759055046,0.0001,189.37,189.36,135.86938268]
[1739759062029,0.0001,189.37,189.36,134.86938268]
[1739759062957,0.0001,189.37,189.36,143.11879694]
[1739759064257,0.03,189.43,189.36,152.90393267]
[1739759064457,0.03,189.43,189.42,8.78513573]
[1739759064646,0.03,189.43,189.42,91.07663618]
[1739759064955,0.03,189.43,189.42,90.28513573]
[1739759065662,0.03,189.43,189.42,81.5]
[1739759066863,0.03,189.43,189.42,86.7792]
[1739759069274,0.03,189.43,189.42,95.56433573]
[1739759069759,0.03,189.43,189.42,115.59618717]
[1739759069960,0.03,189.43,189.42,114.80468268]
[1739759077877,0.03,189.43,189.42,108.97618426]
[1739759081477,0.03,189.47,189.42,108.97618426]
[1739759081478,0.03,189.47,189.45,13.41184853]
[1739759081682,0.03,189.47,189.46,22.98831749]
[1739759083369,0.03,189.47,189.46,28.26641749]
[1739759085984,0.03,189.47,189.46,109.76641749]
[1739759086164,0.03,189.47,189.46,108.97508426]
[1739759086367,0.03,189.56,189.48,33.41184853]
[1739759086582,0.03,189.56,189.55,8.78513573]
[1739759086782,0.03,189.56,189.55,81.5]
[1739759087461,0.03,189.56,189.55,90.28513573]
[1739759090895,0.03,189.56,189.55,95.56073573]
[1739759091490,0.03,189.56,189.55,81.5]
[1739759092788,0.03,189.56,189.52,14.06153573]
[1739759092992,0.03,189.56,189.49,94.6927]
[1739759092993,0.03,189.56,189.5,14.06183573]
[1739759093287,0.03,189.56,189.5,95.56183573]
[1739759093601,0.03,189.56,189.51,8.78513573]
[1739759094489,0.03,189.56,189.51,14.06163573]
[1739759095398,0.03,189.56,189.52,8.78513573]
[1739759095894,0.03,189.56,189.52,14.06143573]
[1739759096395,0.03,189.56,189.53,8.78513573]
[1739759097895,0.03,189.56,189.54,8.78513573]
[1739759098802,0.03,189.56,189.54,14.06083573]
[1739759100991,0.03,189.56,189.54,5.2757]
[1739759103198,0.03,189.56,189.54,14.06083573]
[1739759103399,0.03,189.56,189.55,8.78513573]
[1739759103802,0.03,189.56,189.55,81.5]
[1739759107199,0.03,189.56,189.55,95.56073573]
[1739759110492,0.03,189.56,189.55,86.7756]
[1739759111404,0.03,189.56,189.51,5.2767]
[1739759111998,0.03,189.56,189.5,14.06213573]
[1739759112195,0.03,189.56,189.49,5.2773]
[1739759113006,1.6651,189.55,189.48,8.78513573]
[1739759113302,1.6651,189.55,189.46,90.34813573]
[1739759113503,1.6651,189.55,189.49,20.0]
[1739759113890,6.9409,189.55,189.49,20.0]
[1739759116390,6.9409,189.55,189.49,20.063]
[1739759117103,1.6651,189.55,189.49,25.3403]
[1739759122697,1.6651,189.55,189.49,0.063]
[1739759125910,6.9408,189.55,189.49,0.063]
[1739759129419,6.9708,189.55,189.49,0.063]
[1739759129798,30.0,189.54,189.49,0.063]
[1739759131222,5.2762,189.53,189.49,0.063]
[1739759141620,43.41184853,189.52,189.49,0.063]
[1739759141825,44.41184853,189.52,189.49,0.063]
[1739759143025,5.2767,189.51,189.49,0.063]
[1739759143221,43.41184853,189.5,189.49,0.063]
[1739759144021,43.41184853,189.5,189.46,0.063]
[1739759145731,30.0,189.48,189.46,0.063]
[1739759145930,31.0,189.48,189.46,0.063]
[1739759147316,5.2778,189.47,189.46,0.063]
[1739759148025,18.68964853,189.47,189.46,0.063]
[1739759148238,20.68964853,189.47,189.46,0.063]
[1739759148524,30.0,189.44,189.37,81.563]
[1739759148716,30.0,189.42,189.37,0.063]
[1739759149636,5.2795,189.41,189.37,0.063]
[1739759150005,30.0,189.4,189.37,0.063]
[1739759151134,35.28,189.4,189.37,0.063]
[1739759153712,36.28,189.4,189.37,0.063]
[1739759155916,36.28,189.4,189.3,0.063]
[1739759155917,30.0,189.35,189.3,0.063]
[1739759157321,35.2814,189.35,189.3,0.063]
[1739759159638,1.0,189.3,189.29,0.063]
[1739759159810,2.0,189.3,189.29,0.063]
[1739759160013,30.0,189.25,189.24,0.063]
[1739759160611,43.41184853,189.27,189.24,0.063]
[1739759161218,48.69554853,189.27,189.24,0.063]
[1739759162237,49.69554853,189.27,189.24,0.063]
[1739759163637,30.0,189.25,189.24,0.063]
[1739759163850,35.284,189.25,189.24,0.063]
[1739759165131,48.69584853,189.25,189.24,0.063]
[1739759169535,30.0,189.25,189.24,0.063]
[1739759169846,35.3136,189.27,189.24,0.063]
[1739759170144,30.0,189.25,189.24,0.063]
[1739759170740,30.03,189.27,189.24,0.063]
[1739759170946,0.03,189.27,189.24,0.063]
[1739759172730,30.03,189.27,189.24,0.063]
[1739759173632,13.41184853,189.26,189.24,0.063]
[1739759173950,43.41184853,189.25,189.24,0.063]
[1739759174450,48.69584853,189.25,189.24,0.063]
[1739759175345,14.41184853,189.24,189.23,0.063]
[1739759175559,30.0,189.21,189.18,0.063]
[1739759176355,35.2854,189.21,189.18,0.063]
[1739759177151,30.0,189.19,189.18,0.063]
[1739759177537,43.41184853,189.19,189.18,0.063]
[1739759178737,48.69744853,189.19,189.18,0.063]
[1739759182747,49.69744853,189.19,189.18,0.063]
[1739759191176,48.69744853,189.19,189.18,0.063]
[1739759191473,49.69744853,189.19,189.18,0.063]
[1739759209410,48.69744853,189.19,189.18,0.063]
[1739759210299,49.69744853,189.19,189.18,0.063]
[1739759212002,48.69744853,189.19,189.18,0.063]
[1739759213901,30.0,189.19,189.18,0.063]
[1739759214090,35.2851,189.21,189.18,0.063]
[1739759215296,30.0,189.21,189.18,0.063]
[1739759215501,0.03,189.23,189.18,0.063]
[1739759217307,0.03,189.23,189.18,90.34813573]
[1739759218706,0.03,189.23,189.19,5.2856]
[1739759219704,0.03,189.23,189.19,86.7856]
[1739759225708,0.03,189.23,189.2,7.7831]
[1739759232893,0.03,189.23,189.2,21.85343573]
[1739759234325,0.03,189.23,189.21,8.78513573]
[1739759234512,0.03,189.23,189.22,5.2848]
[1739759234710,0.03,189.23,189.22,86.7848]
[1739759240344,0.03,189.23,189.22,95.56993573]
[1739759241743,0.03,189.23,189.22,86.7848]
[1739759243422,0.03,189.23,189.22,81.5]
[1739759243617,0.03,189.23,189.22,86.7848]
[1739759243918,0.03,189.23,189.22,81.5]
[1739759246636,0.03,189.23,189.22,86.7848]
[1739759247163,0.0001,189.23,189.22,86.7848]
[1739759247334,0.0001,189.23,189.22,95.56993573]
[1739759247746,0.0001,189.23,189.22,86.7848]
[1739759248237,0.0001,189.23,189.22,86.8478]
[1739759250360,0.0001,189.23,189.22,95.63293573]
[1739759257048,0.0001,189.23,189.22,81.563]
[1739759257256,0.0001,189.23,189.22,86.8478]
[1739759259052,0.0001,189.23,189.22,95.63293573]
[1739759271763,0.0001,189.23,189.22,81.563]
[1739759274169,0.0001,189.23,189.22,86.8478]
[1739759274947,0.0001,189.23,189.22,81.563]
[1739759277166,0.0001,189.23,189.22,86.8478]
[1739759278266,0.0001,189.23,189.22,95.63293573]
[1739759280475,0.0001,189.23,189.22,86.8478]
[1739759280859,0.0001,189.23,189.22,81.563]
[1739759281168,0.0001,189.23,189.22,86.8478]
[1739759282248,0.0001,189.23,189.22,81.563]
[1739759283474,0.0001,189.23,189.22,86.8478]
[1739759283975,0.0001,189.23,189.22,95.63293573]
[1739759288956,0.0001,189.23,189.22,86.8478]
[1739759289157,0.0001,189.23,189.22,95.63293573]
[1739759291280,0.0001,189.23,189.22,86.8478]
[1739759291957,0.0001,189.23,189.22,95.63293573]
[1739759298791,0.0001,189.23,189.22,110.70568426]
[1739759299003,0.03,189.27,189.26,8.78513573]
[1739759299164,0.03,189.27,189.26,90.28513573]
[1739759300786,0.03,189.27,189.26,95.56883573]
[1739759315787,0.03,189.27,189.26,86.7837]
[1739759315997,0.03,189.27,189.26,81.5]
[1739759316375,0.03,189.27,189.26,86.7837]
[1739759316601,0.03,189.27,189.26,95.56883573]
[1739759322601,0.03,189.27,189.26,86.7837]
[1739759322788,0.03,189.27,189.26,81.5]
[1739759322979,0.03,189.27,189.26,86.7837]
[1739759324102,0.03,189.27,189.26,81.5]
[1739759324398,0.03,189.27,189.26,86.7837]
[1739759325720,0.03,189.27,189.23,0.063]
[1739759325997,0.03,189.27,189.23,14.13263573]
[1739759326194,0.03,189.27,189.24,8.78513573]
[1739759327184,0.03,189.27,189.25,8.78513573]
[1739759327789,0.03,189.27,189.26,14.06883573]
[1739759331206,0.03,189.27,189.25,14.06913573]
[1739759332506,0.03,189.27,189.25,95.56913573]
[1739759334186,0.03,189.27,189.25,81.5]
[1739759341810,0.03,189.27,189.25,86.7839]
[1739759342003,0.03,189.27,189.25,95.56903573]
[1739759342909,0.03,189.27,189.25,86.7839]
[1739759344398,0.03,189.27,189.25,81.5]
[1739759357739,0.03,189.27,189.23,81.563]
[1739759360539,0.03,189.27,189.25,8.78513573]
[1739759361337,0.03,189.27,189.24,8.78513573]
[1739759362027,0.03,189.27,189.25,5.284]
[1739759362338,0.03,189.27,189.23,95.63263573]
[1739759362729,0.03,189.27,189.23,86.8475]
[1739759364518,0.03,189.27,189.23,95.63263573]
[1739759364919,0.03,189.27,189.23,86.8475]
[1739759365124,0.03,189.27,189.23,81.563]
[1739759368640,0.03,189.27,189.23,86.8475]
[1739759380455,0.03,189.27,189.23,100.0589]
[1739759382853,0.03,189.27,189.24,8.78513573]
[1739759383636,0.03,189.27,189.25,8.78513573]
[1739759385658,0.03,189.27,189.26,5.2837]
[1739759385959,0.03,189.27,189.26,95.56883573]
[1739759388058,0.03,189.27,189.26,102.04163573]
[1739759400269,0.03,189.27,189.26,95.56883573]
[1739759408765,0.03,189.27,189.26,110.77283408]
[1739759408952,0.03,189.27,189.26,109.98068426]
[1739759409160,7.7994,189.39,189.33,8.78513573]
[1739759409453,7.7994,189.39,189.34,8.78513573]
[1739759410082,1.5939,189.39,189.35,8.78513573]
[1739759410294,1.5939,189.39,189.35,90.28513573]
[1739759411178,0.03,189.42,189.36,14.06603573]
[1739759412175,0.03,189.42,189.36,95.56603573]
[1739759412482,0.03,189.42,189.37,8.78513573]
[1739759413759,0.03,189.42,189.38,5.2803]
[1739759414855,0.03,189.42,189.37,14.06573573]
[1739759415789,0.03,189.42,189.37,5.2806]
[1739759416180,0.03,189.42,189.37,14.06573573]
[1739759416384,0.03,189.42,189.38,8.78513573]
[1739759416762,0.03,189.42,189.39,8.78513573]
[1739759417259,0.03,189.42,189.38,14.06523573]
[1739759418857,0.03,189.42,189.39,8.78513573]
[1739759420567,0.03,189.42,189.39,14.06503573]
[1739759420965,0.03,189.42,189.39,8.78513573]
[1739759421379,0.03,189.42,189.38,5.2803]
[1739759421380,0.03,189.42,189.37,14.06573573]
[1739759421575,0.03,189.42,189.37,95.56573573]
[1739759422963,0.03,189.42,189.37,81.5]
[1739759424685,5.2798,189.4,189.35,81.5]
[1739759424891,30.0,189.38,189.31,81.5]
[1739759425388,1.514,189.37,189.31,81.5]
[1739759426883,5.2809,189.36,189.31,81.5]
[1739759428970,1.514,189.37,189.31,81.5]
[1739759429287,6.7947,189.37,189.31,81.5]
[1739759429992,1.514,189.37,189.31,81.5]
[1739759430963,6.7948,189.37,189.31,81.5]
[1739759431573,6.7948,189.37,189.27,81.563]
[1739759431785,30.0,189.3,189.27,0.063]
[1739759432371,30.0,189.32,189.27,0.063]
[1739759433389,5.2823,189.31,189.27,0.063]
[1739759435970,35.282,189.32,189.27,0.063]
[1739759436489,36.282,189.32,189.27,0.063]
[1739759436686,13.41184853,189.31,189.27,0.063]
[1739759436890,30.0,189.29,189.27,0.063]
[1739759437971,5.2831,189.28,189.27,0.063]
[1739759439078,19.69494853,189.28,189.27,0.063]
[1739759439878,20.69494853,189.28,189.27,0.063]
[1739759440072,30.0,189.24,189.23,0.063]
[1739759440799,43.41184853,189.24,189.23,0.063]
[1739759441096,49.69604853,189.24,189.23,0.063]
[1739759443481,50.69604853,189.24,189.23,0.063]
[1739759443686,14.41184853,189.23,189.22,0.063]
[1739759444494,15.41184853,189.23,189.22,0.063]
[1739759444796,63.41184853,189.2,189.19,0.063]
[1739759445596,68.69724853,189.2,189.19,0.063]
[1739759447802,70.69724853,189.2,189.19,0.063]
[1739759448482,15.41184853,189.19,189.18,0.063]
[1739759449399,20.69744853,189.19,189.18,0.063]
[1739759449784,27.24164853,189.19,189.18,0.063]
[1739759450506,45.41184853,189.18,189.1,0.063]
[1739759451510,50.69774853,189.18,189.1,0.063]
[1739759451999,30.0,189.11,189.1,0.063]
[1739759452809,43.41184853,189.13,189.1,0.063]
[1739759453996,30.0,189.11,189.1,0.063]
[1739759454710,48.69914853,189.13,189.1,0.063]
[1739759456205,30.0,189.11,189.1,0.063]
[1739759456806,48.69914853,189.13,189.1,0.063]
[1739759458507,30.0,189.11,189.1,0.063]
[1739759459413,35.2879,189.11,189.1,0.063]
[1739759460618,30.0,189.11,189.1,0.063]
[1739759461500,35.2879,189.11,189.1,0.063]
[1739759464017,35.2879,189.11,189.1,0.063]
[1739759464313,48.69974853,189.11,189.1,0.063]
[1739759465403,49.69974853,189.11,189.1,0.063]
[1739759465609,15.41184853,189.1,189.09,0.063]
[1739759465808,209.21184853,189.1,189.09,0.063]
[1739759466904,214.50004853,189.1,189.09,0.063]
[1739759467902,213.50004853,189.1,189.09,0.063]
[1739759468726,214.50004853,189.1,189.09,0.063]
[1739759469212,103.00004853,189.1,189.09,0.063]
[1739759469414,102.00004853,189.1,189.09,0.063]
[1739759470537,103.00004853,189.1,189.09,0.063]
[1739759472532,45.41184853,189.09,189.08,0.063]
[1739759474326,31.0,189.07,189.06,0.063]
[1739759474628,44.41184853,189.07,189.06,0.063]
[1739759476931,49.70084853,189.07,189.06,0.063]
[1739759477418,43.41184853,189.07,189.06,0.063]
[1739759477819,48.70084853,189.07,189.06,0.063]
[1739759479030,49.70084853,189.07,189.06,0.063]
[1739759480029,48.70084853,189.07,189.06,0.063]
[1739759481313,82.3,189.08,189.06,0.063]
[1739759483546,35.2879,189.11,189.06,0.063]
[1739759483726,30.0,189.11,189.06,0.063]
[1739759485844,30.0,189.14,189.06,8.84813573]
[1739759486135,35.2872,189.14,189.06,8.84813573]
[1739759486932,0.063,189.08,189.06,8.84813573]
[1739759487441,0.063,189.08,189.06,0.063]
[1739759490435,30.063,189.08,189.06,0.063]
[1739759490636,13.41184853,189.07,189.06,0.063]
[1739759490833,14.41184853,189.07,189.06,0.063]
[1739759491642,19.70084853,189.07,189.06,0.063]
[1739759493540,20.70084853,189.07,189.06,0.063]
[1739759495024,45.41184853,189.06,189.05,0.063]
[1739759496230,50.70114853,189.06,189.05,0.063]
[1739759504546,48.70114853,189.06,189.05,0.063]
[1739759506135,49.70114853,189.06,189.05,0.063]
[1739759507848,48.70114853,189.06,189.05,0.063]
[1739759508037,49.70114853,189.06,189.05,0.063]
[1739759509158,50.70114853,189.06,189.05,0.063]
[1739759510547,15.41184853,189.05,189.04,0.063]
[1739759511055,45.41184853,189.04,189.03,0.0001]
[1739759511227,50.70164853,189.04,189.03,0.0001]
[1739759515052,52.0,189.01,188.93,7.7535]
[1739759515241,65.41184853,189.01,188.93,7.7535]
[1739759516252,70.70254853,189.01,188.93,7.7535]
[1739759517553,69.70254853,189.01,188.93,7.7535]
[1739759519956,70.70254853,189.01,188.93,7.7535]
[1739759520341,30.0,188.94,188.93,1.5907]
[1739759520872,43.41184853,188.94,188.93,1.5907]
[1739759521236,30.0,188.92,188.91,0.063]
[1739759521453,43.41184853,188.92,188.91,0.063]
[1739759521659,48.70504853,188.92,188.91,0.063]
[1739759522744,30.0,188.94,188.91,0.063]
[1739759522947,35.2928,188.94,188.91,0.063]
[1739759523535,30.0,188.94,188.91,0.063]
[1739759523949,35.2927,188.94,188.91,0.063]
[1739759525059,30.0,188.92,188.91,0.063]
[1739759527067,35.2932,188.92,188.91,0.063]
[1739759527441,48.70504853,188.92,188.91,0.063]
[1739759527745,35.2932,188.92,188.91,0.063]
[1739759527949,30.0,188.92,188.91,0.063]
[1739759528672,35.2932,188.92,188.91,0.063]
[1739759531156,30.0,188.92,188.91,0.063]
[1739759531357,43.41184853,188.94,188.91,0.063]
[1739759531563,35.2921,188.96,188.91,0.063]
[1739759532660,30.0,188.96,188.91,0.063]
[1739759533864,30.0,188.98,188.91,8.84813573]
[1739759534045,30.0,188.98,188.93,8.78513573]
[1739759534244,35.2915,188.98,188.93,8.78513573]
[1739759534769,35.2915,188.98,188.92,8.78513573]
[1739759535845,35.2915,188.98,188.91,8.84813573]
[1739759536268,35.2915,188.98,188.91,0.063]
[1739759536567,13.41184853,188.97,188.91,0.063]
[1739759536771,30.0,188.96,188.91,0.063]
[1739759537262,35.2915,188.98,188.91,8.84813573]
[1739759537454,35.2915,188.98,188.91,14.14153573]
[1739759537978,30.0,188.98,188.92,8.78513573]
[1739759538156,35.2915,188.98,188.92,8.78513573]
[1739759538468,35.2915,188.98,188.91,14.14153573]
[1739759539457,30.0,188.98,188.92,8.78513573]
[1739759539653,35.354,189.0,188.92,8.78513573]
[1739759540767,35.354,189.0,188.92,14.07813573]
[1739759543472,0.063,189.0,188.95,8.78513573]
[1739759544484,0.063,189.0,188.96,10.40043573]
[1739759546483,0.063,189.0,188.98,8.78513573]
[1739759546665,0.063,189.0,188.99,8.78513573]
[1739759546999,0.063,189.0,188.98,8.78513573]
[1739759548569,0.063,189.0,188.99,8.78513573]
[1739759550573,0.063,189.0,188.99,95.57633573]
[1739759553405,0.063,189.0,188.99,81.5]
[1739759554116,0.063,189.0,188.99,86.7912]
[1739759554417,0.063,189.0,188.99,81.5]
[1739759554619,0.063,189.0,188.99,86.7912]
[1739759554822,0.063,189.0,188.99,95.57633573]
[1739759555119,0.063,189.0,188.99,81.5]
[1739759556019,0.063,189.0,188.96,97.19253573]
[1739759557723,0.063,189.0,188.97,8.78513573]
[1739759557886,0.063,189.0,188.96,83.1153]
[1739759558533,0.063,189.0,188.96,97.19233573]
[1739759559740,0.063,189.0,188.96,97.22233573]
[1739759560128,0.063,189.0,188.96,81.53]
[1739759560714,0.063,189.0,188.96,0.03]
[1739759561520,5.354,189.0,188.96,0.03]
[1739759563432,30.0,188.99,188.96,0.03]
[1739759566258,35.2912,188.99,188.96,0.03]
[1739759569129,13.41184853,188.98,188.96,0.03]
[1739759569337,18.70364853,188.98,188.96,0.03]
[1739759569661,30.0,188.97,188.96,0.03]
[1739759571159,35.2918,188.97,188.96,0.03]
[1739759574263,48.70364853,188.97,188.96,0.03]
[1739759576152,49.70364853,188.97,188.96,0.03]
[1739759576356,50.70364853,188.97,188.96,0.03]
[1739759578558,30.0,188.92,188.91,0.063]
[1739759579265,35.2932,188.92,188.91,0.063]
[1739759579464,30.0,188.92,188.91,0.063]
[1739759582967,35.2932,188.92,188.91,0.063]
[1739759586841,48.70504853,188.92,188.91,0.063]
[1739759589504,51.21084853,188.92,188.91,0.063]
[1739759589711,1.0,188.87,188.86,0.03]
[1739759589881,14.41184853,188.87,188.86,0.03]
[1739759590075,20.70644853,188.87,188.86,0.03]
[1739759590806,30.0,188.8,188.77,0.03]
[1739759591802,35.2966,188.8,188.77,0.03]
[1739759592613,32.0,188.69,188.68,16.49882853]
[1739759592775,31.0,188.69,188.68,4.07712934]
[1739759592976,2.0,188.68,188.67,31.44585338]
[1739759593209,30.0,188.66,188.65,18.65115901]
[1739759593803,48.71234853,188.66,188.64,7.49164757]
[1739759594098,43.41184853,188.66,188.61,8.27763901]
[1739759594379,30.0,188.66,188.61,8.27763901]
[1739759595373,30.0,188.64,188.61,8.27763901]
[1739759595775,30.0,188.64,188.56,8.78513573]
[1739759595970,30.0,188.64,188.58,0.03]
[1739759596170,55.66950788,188.64,188.58,0.03]
[1739759596596,10.82238225,188.63,188.58,0.03]
[1739759597196,55.66950788,188.64,188.56,8.78513573]
[1739759597197,10.82238225,188.62,188.56,8.78513573]
[1739759597697,10.82238225,188.62,188.53,20.0]
[1739759597879,10.82238225,188.62,188.56,8.78513573]
[1739759598203,10.82238225,188.62,188.55,8.78513573]
[1739759598382,10.82238225,188.61,188.54,8.78513573]
[1739759598573,10.82238225,188.61,188.53,8.78513573]
[1739759598776,10.82238225,188.61,188.53,28.78513573]
[1739759598988,10.82238225,188.61,188.54,8.78513573]
[1739759599190,10.82238225,188.61,188.55,8.78513573]
[1739759599504,90.33529267,188.6,188.55,8.78513573]
[1739759599890,90.33529267,188.6,188.54,8.78513573]
[1739759600282,10.82238225,188.59,188.54,8.78513573]
[1739759600998,10.82238225,188.59,188.52,8.78513573]
[1739759601179,10.82238225,188.59,188.51,14.83953573]
[1739759601378,59.50948004,188.58,188.51,14.83953573]
[1739759601578,59.50948004,188.58,188.52,8.78513573]
[1739759602385,10.82238225,188.57,188.52,8.78513573]
[1739759602586,10.82238225,188.57,188.51,20.14403573]
[1739759602793,10.82238225,188.57,188.52,8.78513573]
[1739759602994,10.82238225,188.57,188.53,14.08923573]
[1739759603303,10.82238225,188.56,188.53,14.08923573]
[1739759603484,10.82238225,188.56,188.54,8.78513573]
[1739759603885,10.82238225,188.56,188.55,8.78513573]
[1739759604399,48.68709779,188.58,188.54,8.78513573]
[1739759604803,48.68709779,188.58,188.55,8.78513573]
[1739759606004,48.68709779,188.58,188.56,8.78513573]
[1739759606516,48.68709779,188.58,188.57,8.78513573]
[1739759607293,65.08306741,188.6,188.58,5.3027]
[1739759609190,65.08306741,188.6,188.56,8.78513573]
[1739759609392,65.08306741,188.6,188.57,14.08813573]
[1739759611418,65.08306741,188.6,188.58,8.78513573]
[1739759612606,65.08306741,188.6,188.57,14.08813573]
[1739759614202,65.08306741,188.6,188.56,8.78513573]
[1739759615309,65.08306741,188.6,188.55,8.78513573]
[1739759616215,65.08306741,188.6,188.56,5.3033]
[1739759616512,65.08306741,188.6,188.56,14.08843573]
[1739759617311,65.08306741,188.6,188.56,8.8451267]